bitfinex/quotes_SOLUSD_20250619
["timestamp","ask_amount","ask_price","bid_price","bid_amount"]
[1750371630463,10.4877921,146.86,146.82,24.20575341]
[1750371630464,10.4877921,146.86,146.83,6.81059728]
[1750371630668,6.43810051,146.84,146.81,6.8115251]
[1750371630967,6.43810051,146.82,146.78,6.81291729]
[1750371631166,6.43810051,146.79,146.78,6.81291729]
[1750371631353,7.17810051,146.79,146.78,6.81291729]
[1750371632242,7.17810051,146.79,146.75,6.81431005]
[1750371632438,6.43810051,146.78,146.75,6.81431005]
[1750371633364,6.43810051,146.77,146.75,6.81431005]
[1750371633939,26.0,146.81,146.75,6.81431005]
[1750371634142,6.43810051,146.76,146.75,6.81431005]
[1750371634340,6.43810051,146.76,146.74,17.03588265]
[1750371634758,0.74,146.78,146.74,17.03588265]
[1750371634959,6.43810051,146.76,146.74,17.03588265]
[1750371635363,6.43810051,146.77,146.74,17.03588265]
[1750371636258,6.43810051,146.77,146.73,13.99333938]
[1750371636259,6.43810051,146.76,146.73,7.55523887]
[1750371636970,6.43810051,146.76,146.73,24.59333605]
[1750371637368,6.43810051,146.76,146.73,23.85333605]
[1750371638454,6.43810051,146.76,146.73,24.59333605]
[1750371639145,6.43810051,146.75,146.73,6.81523887]
[1750371639345,6.43810051,146.74,146.73,6.81523887]
[1750371640789,7.17810051,146.74,146.73,6.81523887]
[1750371641078,7.17810051,146.74,146.69,23.85984046]
[1750371641373,6.43810051,146.73,146.69,24.59984046]
[1750371641577,6.43810051,146.73,146.7,0.74]
[1750371643294,6.43810051,146.73,146.71,6.81616795]
[1750371644168,6.43810051,146.72,146.71,6.81616795]
[1750371644366,7.17810051,146.72,146.71,6.81616795]
[1750371645093,7.17810051,146.72,146.69,23.85984046]
[1750371645289,6.43810051,146.71,146.69,23.85984046]
[1750371646986,6.43810051,146.71,146.69,17.04274319]
[1750371648339,7.17810051,146.7,146.68,6.81756203]
[1750371648476,6.43810051,146.69,146.68,6.81756203]
[1750371649480,6.43810051,146.69,146.66,23.8635691]
[1750371649793,6.43810051,146.68,146.66,24.6035691]
[1750371651375,6.43810051,146.68,146.66,17.04507736]
[1750371652879,6.43810051,146.67,146.66,17.04507736]
[1750371653372,6.43810051,146.67,146.65,6.81895669]
[1750371653578,6.43810051,146.66,146.65,6.81895669]
[1750371654799,6.43810051,146.66,146.63,6.81988678]
[1750371654986,6.43810051,146.67,146.64,0.74]
[1750371655185,0.74,146.69,146.63,23.86960375]
[1750371655376,0.74,146.7,146.63,6.81988678]
[1750371655696,6.43810051,146.65,146.63,7.55988678]
[1750371656072,6.43810051,146.66,146.63,7.55988678]
[1750371656480,6.43810051,146.66,146.63,24.60960375]
[1750371656911,6.43810051,146.65,146.63,24.60960375]
[1750371657075,6.43810051,146.64,146.6,7.5612824]
[1750371657270,6.43810051,146.62,146.6,7.5612824]
[1750371657775,7.14810051,146.65,146.6,6.8212824]
[1750371657974,6.43810051,146.61,146.6,6.8212824]
[1750371659001,0.71,146.6,146.57,6.82267858]
[1750371659208,6.43810051,146.59,146.57,6.82267858]
[1750371659416,26.71,146.62,146.58,0.74]
[1750371659577,6.43810051,146.6,146.58,0.74]
[1750371659774,6.43810051,146.59,146.57,23.87937503]
[1750371660081,6.43810051,146.59,146.57,24.61937503]
[1750371660292,6.43810051,146.59,146.57,23.87937503]
[1750371660882,6.43810051,146.59,146.57,17.05669645]
[1750371661395,2.3717,146.67,146.6,0.74]
[1750371661596,6.43810051,146.66,146.61,6.43810051]
[1750371661900,6.43810051,146.65,146.62,0.74]
[1750371662881,6.43810051,146.66,146.62,0.74]
[1750371663078,6.43810051,146.65,146.63,23.86960375]
[1750371663801,6.43810051,146.65,146.63,6.81988678]
[1750371664102,7.14810051,146.64,146.63,6.81988678]
[1750371664782,6.43810051,146.64,146.63,6.81988678]
[1750371665178,6.43810051,146.64,146.61,23.87285996]
[1750371665902,6.43810051,146.65,146.61,31.05096047]
[1750371668905,26.0,146.67,146.62,6.43810051]
[1750371669106,26.0,146.67,146.64,6.43810051]
[1750371669299,32.43810051,146.67,146.63,7.17810051]
[1750371669512,7.14810051,146.66,146.61,57.97694562]
[1750371669803,0.71,146.66,146.61,65.15504613]
[1750371670011,6.43810051,146.65,146.61,65.15504613]
[1750371670587,7.14810051,146.66,146.62,6.43810051]
[1750371670786,32.43810051,146.67,146.63,30.30770426]
[1750371671111,32.43810051,146.67,146.64,0.74]
[1750371672491,32.43810051,146.67,146.63,30.30770426]
[1750371672492,32.43810051,146.67,146.63,31.04770426]
[1750371674296,33.14810051,146.67,146.63,30.30770426]
[1750371674888,7.14810051,146.65,146.63,17.04971697]
[1750371675221,6.43810051,146.66,146.63,17.04971697]
[1750371677093,6.43810051,146.66,146.63,23.86960375]
[1750371678000,7.14810051,146.66,146.63,23.86960375]
[1750371679008,7.14810051,146.66,146.63,17.04971697]
[1750371679794,6.43810051,146.65,146.63,17.04971697]
[1750371680007,7.14810051,146.65,146.63,17.04971697]
[1750371682316,7.14810051,146.65,146.61,23.87285996]
[1750371682515,6.43810051,146.64,146.61,23.87285996]
[1750371682716,7.14810051,146.63,146.61,23.87285996]
[1750371683300,7.14810051,146.62,146.61,6.82081713]
[1750371684023,0.71,146.61,146.57,23.87919848]
[1750371684202,7.14810051,146.6,146.57,17.0565199]
[1750371684397,7.14810051,146.58,146.56,6.8231441]
[1750371684596,0.71,146.58,146.56,6.8231441]
[1750371684795,6.43810051,146.57,146.56,6.8231441]
[1750371685211,0.71,146.6,146.56,23.88100436]
[1750371685417,0.71,146.64,146.58,7.17810051]
[1750371685623,33.14810051,146.64,146.6,6.43810051]
[1750371686227,33.14810051,146.64,146.61,6.82081713]
[1750371687005,32.43810051,146.64,146.61,23.87285996]
[1750371688429,155.53810051,146.65,146.61,30.31096047]
[1750371688610,149.1,146.65,146.62,6.43810051]
[1750371689225,155.53810051,146.65,146.61,31.02096047]
[1750371690301,149.1,146.65,146.62,6.43810051]
[1750371691227,149.1,146.65,146.61,31.02096047]
[1750371692510,149.1,146.65,146.61,24.58285996]
[1750371692714,149.1,146.65,146.61,31.02096047]
[1750371695934,156.26810051,146.65,146.61,31.02096047]
[1750371698235,155.76810051,146.65,146.61,31.02096047]
[1750371698929,155.76810051,146.65,146.61,30.31096047]
[1750371699133,7.16810051,146.63,146.61,23.87285996]
[1750371700320,7.16810051,146.63,146.61,17.05204283]
[1750371700321,6.43810051,146.62,146.61,17.05204283]
[1750371700707,0.73,146.63,146.61,17.05204283]
[1750371700708,7.16810051,146.63,146.61,17.05204283]
[1750371703138,7.16810051,146.63,146.6,6.8212824]
[1750371703322,7.16810051,146.61,146.6,6.8212824]
[1750371703728,0.73,146.61,146.6,6.8212824]
[1750371703929,7.16810051,146.62,146.6,6.8212824]
[1750371704440,6.66810051,146.62,146.6,6.8212824]
[1750371705323,5.93810051,146.62,146.58,31.02483489]
[1750371706025,6.66810051,146.62,146.58,31.02483489]
[1750371706248,6.66810051,146.62,146.58,23.87673438]
[1750371707221,6.66810051,146.62,146.58,24.58673438]
[1750371712341,0.73,146.61,146.58,23.87673438]
[1750371712841,7.16810051,146.61,146.58,23.87673438]
[1750371713147,7.16810051,146.59,146.58,6.82221312]
[1750371714132,7.16810051,146.59,146.56,23.88086231]
[1750371715027,7.16810051,146.58,146.56,23.88086231]
[1750371715227,26.0,146.61,146.56,23.88086231]
[1750371715437,0.73,146.57,146.56,23.88086231]
[1750371715730,7.16810051,146.57,146.56,6.8231441]
[1750371716114,7.16810051,146.57,146.55,6.82360968]
[1750371716847,0.73,146.57,146.55,6.82360968]
[1750371717056,26.73,146.59,146.55,23.8826339]
[1750371717222,6.43810051,146.58,146.55,23.8826339]
[1750371717423,7.16810051,146.57,146.55,6.82360968]
[1750371717623,26.0,146.59,146.55,6.82360968]
[1750371717624,7.16810051,146.56,146.55,6.82360968]
[1750371717823,0.73,146.55,146.51,17.06351147]
[1750371718044,6.43810051,146.54,146.51,17.06351147]
[1750371718239,6.43810051,146.54,146.51,23.88898413]
[1750371719454,7.16810051,146.55,146.51,24.57898413]
[1750371720140,0.73,146.55,146.51,24.57898413]
[1750371720343,7.16810051,146.55,146.51,24.57898413]
[1750371722654,6.43810051,146.54,146.51,24.57898413]
[1750371723135,6.43810051,146.53,146.51,17.06351147]
[1750371723627,6.43810051,146.52,146.51,17.06351147]
[1750371724861,6.43810051,146.52,146.5,6.82593856]
[1750371725059,6.43810051,146.51,146.5,6.82593856]
[1750371726141,0.73,146.5,146.49,118.60167305]
[1750371726346,7.16810051,146.5,146.49,6.82625629]
[1750371726541,0.73,146.49,146.46,6.82780281]
[1750371726846,0.73,146.51,146.47,0.69]
[1750371727051,6.43810051,146.5,146.47,0.69]
[1750371727643,6.43810051,146.49,146.47,0.69]
[1750371728173,6.43810051,146.48,146.46,6.82780281]
[1750371728353,7.16810051,146.51,146.45,6.82826903]
[1750371728354,6.43810051,146.47,146.45,6.82826903]
[1750371729086,148.6,146.56,146.47,0.69]
[1750371729384,6.43810051,146.54,146.51,0.69]
[1750371730839,32.43810051,146.55,146.52,6.82500682]
[1750371731040,6.43810051,146.54,146.52,23.88752388]
[1750371733073,32.43810051,146.55,146.52,17.06251706]
[1750371733265,26.0,146.55,146.52,17.06251706]
[1750371733467,32.43810051,146.55,146.52,17.06251706]
[1750371734173,32.43810051,146.55,146.52,17.75251706]
[1750371734540,32.43810051,146.55,146.52,24.57752388]
[1750371738667,148.6,146.56,146.53,0.69]
[1750371738965,148.6,146.56,146.54,0.69]
[1750371739171,6.43810051,146.58,146.54,7.12810051]
[1750371740146,6.43810051,146.58,146.55,6.82360968]
[1750371741247,7.16810051,146.58,146.55,23.8826339]
[1750371742478,7.16810051,146.57,146.55,17.05902422]
[1750371744147,26.73,146.6,146.53,31.01399417]
[1750371744361,7.16810051,146.58,146.54,0.69]
[1750371744557,6.43810051,146.57,146.54,0.69]
[1750371745155,6.43810051,146.57,146.53,30.32399417]
[1750371745357,6.43810051,146.57,146.53,24.57589366]
[1750371745655,6.43810051,146.57,146.53,31.01399417]
[1750371746184,7.16810051,146.58,146.55,23.8826339]
[1750371747652,0.73,146.58,146.55,23.8826339]
[1750371747865,7.16810051,146.58,146.55,23.8826339]
[1750371749583,7.16810051,146.58,146.55,17.05902422]
[1750371750992,26.0,146.6,146.56,0.68]
[1750371751204,6.43810051,146.59,146.56,0.68]
[1750371751484,6.43810051,146.57,146.53,23.88589366]
[1750371751783,6.43810051,146.57,146.54,0.68]
[1750371753788,6.43810051,146.57,146.55,6.82360968]
[1750371757489,0.71,146.59,146.55,6.82360968]
[1750371757694,149.31,146.62,146.57,6.43810051]
[1750371757868,181.74810051,146.62,146.58,0.68]
[1750371758198,181.74810051,146.62,146.59,6.82174773]
[1750371758567,148.6,146.62,146.59,23.87611705]
[1750371758895,148.6,146.62,146.59,24.55611705]
[1750371759096,155.03810051,146.62,146.59,23.87611705]
[1750371759296,155.74810051,146.62,146.59,23.87611705]
[1750371760363,155.74810051,146.62,146.59,17.05436932]
[1750371760916,155.03810051,146.62,146.59,17.73436932]
[1750371761684,6.43810051,146.62,146.59,17.73436932]
[1750371762367,6.43810051,146.62,146.59,23.87611705]
[1750371763700,0.71,146.63,146.59,24.55611705]
[1750371763879,1.5801,146.65,146.59,24.55611705]
[1750371763880,155.74810051,146.66,146.61,7.11810051]
[1750371764197,7.14810051,146.65,146.61,7.11810051]
[1750371764400,7.14810051,146.65,146.61,0.68]
[1750371766193,0.71,146.65,146.62,23.87123175]
[1750371767173,155.74810051,146.66,146.62,24.55123175]
[1750371767571,155.74810051,146.66,146.62,30.98933226]
[1750371767778,148.6,146.66,146.63,7.11810051]
[1750371768281,32.43810051,146.67,146.63,7.11810051]
[1750371768892,6.43810051,146.67,146.63,6.43810051]
[1750371769192,6.43810051,146.67,146.63,7.11810051]
[1750371770484,181.74810051,146.7,146.65,6.43810051]
[1750371770685,181.03810051,146.7,146.66,6.43810051]
[1750371770884,174.6,146.7,146.67,7.11810051]
[1750371772585,148.6,146.7,146.68,6.81756203]
[1750371772775,7.14810051,146.72,146.68,6.81756203]
[1750371773185,0.71,146.72,146.68,30.97956763]
[1750371773589,7.14810051,146.72,146.68,30.97956763]
[1750371780497,7.14810051,146.72,146.68,30.29956763]
[1750371780704,0.7,146.71,146.68,23.86146712]
[1750371781002,7.13810051,146.71,146.68,23.86146712]
[1750371782204,6.43810051,146.71,146.68,24.58146712]
[1750371783597,7.13810051,146.71,146.68,24.58146712]
[1750371783801,0.7,146.71,146.68,24.58146712]
[1750371784188,149.3,146.73,146.69,0.72]
[1750371784408,6.43810051,146.72,146.69,0.72]
[1750371784805,7.13810051,146.72,146.68,30.29956763]
[1750371784991,7.13810051,146.72,146.68,31.01956763]
[1750371786109,7.13810051,146.69,146.66,6.81849174]
[1750371786312,7.13810051,146.67,146.66,6.81849174]
[1750371787217,7.13810051,146.67,146.63,23.86954333]
[1750371787428,6.43810051,146.66,146.63,23.86954333]
[1750371787629,6.43810051,146.66,146.63,24.58954333]
[1750371787782,0.7,146.67,146.63,24.58954333]
[1750371788213,6.43810051,146.66,146.63,24.58954333]
[1750371788795,0.7,146.67,146.63,24.58954333]
[1750371788988,6.43810051,146.66,146.63,24.58954333]
[1750371789812,6.43810051,146.64,146.63,6.81988678]
[1750371790125,0.7,146.63,146.61,6.82081713]
[1750371790293,6.43810051,146.62,146.56,0.72]
[1750371790500,6.43810051,146.58,146.56,6.8231441]
[1750371790919,6.43810051,146.57,146.56,6.8231441]
[1750371791100,6.43810051,146.58,146.56,6.8231441]
[1750371792101,0.7,146.6,146.56,6.8231441]
[1750371792313,6.43810051,146.58,146.56,6.8231441]
[1750371793297,0.7,146.6,146.56,6.8231441]
[1750371793496,6.43810051,146.58,146.56,6.8231441]
[1750371793697,0.7,146.62,146.57,0.72]
[1750371794095,6.43810051,146.6,146.57,0.72]
[1750371794613,1.5427,146.64,146.57,0.72]
[1750371794614,0.7,146.64,146.57,6.43810051]
[1750371794817,6.43810051,146.64,146.6,6.43810051]
[1750371795129,6.43810051,146.64,146.6,7.15810051]
[1750371795334,6.43810051,146.65,146.61,0.72]
[1750371795706,6.43810051,146.65,146.62,6.82035193]
[1750371796605,7.13810051,146.66,146.62,7.54035193]
[1750371797510,26.0,146.68,146.62,7.54035193]
[1750371797717,6.43810051,146.68,146.64,7.15810051]
[1750371797915,149.3,146.69,146.64,7.15810051]
[1750371798223,6.43810051,146.68,146.64,7.15810051]
[1750371798608,0.7,146.71,146.66,7.15810051]
[1750371798807,6.43810051,146.7,146.66,7.15810051]
[1750371799729,7.13810051,146.7,146.67,6.81802686]
[1750371802117,174.6,146.72,146.67,6.81802686]
[1750371802324,6.43810051,146.7,146.67,6.81802686]
[1750371803139,6.43810051,146.7,146.67,23.86309401]
[1750371803636,6.43810051,146.69,146.67,6.81802686]
[1750371804023,7.13810051,146.68,146.67,6.81802686]
[1750371804349,0.7,146.67,146.65,6.81895669]
[1750371805223,7.13810051,146.69,146.65,23.86634843]
[1750371805829,6.43810051,146.68,146.65,23.86634843]
[1750371806746,7.14810051,146.68,146.65,23.86634843]
[1750371808039,7.14810051,146.68,146.65,17.04739174]
[1750371808942,6.43810051,146.68,146.65,23.86634843]
[1750371812124,187.85393544,146.72,146.61,14.63]
[1750371812125,6.43810051,146.66,146.61,14.63]
[1750371812330,6.43810051,146.63,146.62,6.82035193]
[1750371813221,6.43810051,146.63,146.59,23.87611705]
[1750371813418,6.43810051,146.63,146.59,24.62611705]
[1750371814344,6.43810051,146.63,146.59,31.06421756]
[1750371814738,0.71,146.65,146.59,30.31421756]
[1750371814928,6.43810051,146.64,146.6,7.18810051]
[1750371815119,6.43810051,146.64,146.61,0.75]
[1750371816951,148.6,146.68,146.62,6.82035193]
[1750371817131,6.43810051,146.67,146.63,6.43810051]
[1750371817346,6.43810051,146.68,146.64,0.75]
[1750371817530,7.14810051,146.68,146.64,0.75]
[1750371818856,6.43810051,146.69,146.65,24.61634843]
[1750371819239,6.43810051,146.69,146.65,31.05444894]
[1750371819555,7.14810051,146.68,146.65,23.86634843]
[1750371819731,6.43810051,146.67,146.65,23.86634843]
[1750371820243,0.71,146.68,146.65,23.86634843]
[1750371820449,6.43810051,146.67,146.65,23.86634843]
[1750371821161,6.43810051,146.67,146.65,17.04739174]
[1750371822855,6.43810051,146.67,146.64,6.81942171]
[1750371823755,0.71,146.68,146.64,23.86797599]
[1750371823970,6.43810051,146.67,146.64,24.61797599]
[1750371825964,26.0,146.71,146.64,24.61797599]
[1750371826157,6.43810051,146.68,146.64,30.3060765]
[1750371826352,6.43810051,146.68,146.65,0.75]
[1750371827560,6.43810051,146.69,146.66,24.61472111]
[1750371828174,6.43810051,146.68,146.66,23.86472111]
[1750371828959,26.0,146.71,146.66,23.86472111]
[1750371829167,6.43810051,146.68,146.66,23.86472111]
[1750371829667,6.43810051,146.68,146.66,17.04622937]
[1750371832491,0.71,146.7,146.66,17.04622937]
[1750371832662,6.43810051,146.68,146.66,17.04622937]
[1750371832995,6.43810051,146.68,146.66,17.79622937]
[1750371833480,6.43810051,146.69,146.66,17.79622937]
[1750371834260,6.43810051,146.69,146.66,24.61472111]
[1750371835176,6.43810051,146.7,146.66,58.70717985]
[1750371835361,6.43810051,146.7,146.66,64.39528036]
[1750371835560,6.43810051,146.71,146.66,64.39528036]
[1750371835758,6.43810051,146.71,146.67,0.75]
[1750371836071,6.43810051,146.71,146.66,64.39528036]
[1750371836256,25.463479,146.77,146.66,64.39528036]
[1750371836257,0.75,146.75,146.7,0.68]
[1750371836459,6.43810051,146.73,146.7,0.68]
[1750371838488,6.43810051,146.73,146.71,6.81616795]
[1750371838848,6.43810051,146.72,146.71,6.81616795]
[1750371839980,6.43810051,146.72,146.67,53.58774937]
[1750371839981,7.18810051,146.72,146.68,23.86146712]
[1750371840189,6.43810051,146.71,146.68,24.54146712]
[1750371840361,6.43810051,146.72,146.68,24.54146712]
[1750371840557,6.43810051,146.74,146.7,6.43810051]
[1750371840794,6.43810051,146.75,146.71,7.11810051]
[1750371841155,6.43810051,146.72,146.69,8.1895]
[1750371841358,6.43810051,146.71,146.69,5.94]
[1750371841601,5.09632664,146.75,146.69,6.62]
[1750371841768,26.75,146.78,146.71,7.11810051]
[1750371842081,6.43810051,146.76,146.72,23.85496183]
[1750371842258,6.43810051,146.76,146.72,24.53496183]
[1750371842457,7.18810051,146.76,146.72,24.53496183]
[1750371842683,7.18810051,146.74,146.72,23.85496183]
[1750371842980,0.75,146.74,146.72,23.85496183]
[1750371843178,31.09589815,146.78,146.72,23.85496183]
[1750371843381,6.43810051,146.76,146.72,23.85496183]
[1750371843581,0.75,146.75,146.72,23.85496183]
[1750371843978,6.43810051,146.76,146.72,23.85496183]
[1750371844174,7.18810051,146.76,146.72,30.29306234]
[1750371845081,5.09589815,146.8,146.75,7.11810051]
[1750371845281,7.18810051,146.8,146.76,6.43810051]
[1750371845669,7.18810051,146.8,146.75,7.11810051]
[1750371847256,7.18810051,146.8,146.76,23.84846006]
[1750371848087,7.18810051,146.79,146.76,23.84846006]
[1750371848274,0.75,146.77,146.76,23.84846006]
[1750371848984,7.18810051,146.78,146.76,23.84846006]
[1750371849367,7.18810051,146.78,146.74,23.8517105]
[1750371849563,0.75,146.76,146.74,23.8517105]
[1750371849763,7.18810051,146.76,146.74,23.8517105]
[1750371849969,6.43810051,146.76,146.74,23.8517105]
[1750371851391,6.43810051,146.76,146.74,17.03693607]
[1750371852072,158.6,146.85,146.74,17.03693607]
[1750371852264,6.43810051,146.81,146.76,6.43810051]
[1750371852464,6.43810051,146.8,146.76,6.43810051]
[1750371852870,6.43810051,146.8,146.76,7.11810051]
[1750371853078,7.18810051,146.81,146.76,7.11810051]
[1750371853285,6.43810051,146.81,146.78,23.84521051]
[1750371853497,6.43810051,146.82,146.78,23.84521051]
[1750371853682,7.18810051,146.81,146.78,23.84521051]
[1750371854082,6.43810051,146.79,146.78,23.84521051]
[1750371854284,7.18810051,146.79,146.78,6.81291729]
[1750371855484,7.18810051,146.79,146.76,17.03446056]
[1750371855780,6.43810051,146.78,146.76,17.03446056]
[1750371857396,6.43810051,146.78,146.74,23.8517105]
[1750371858104,6.43810051,146.77,146.74,23.8517105]
[1750371859399,6.43810051,146.76,146.74,23.8517105]
[1750371859699,7.18810051,146.75,146.74,6.81477443]
[1750371860272,32.43810051,146.75,146.72,6.81570338]
[1750371860472,7.18810051,146.73,146.72,6.81570338]
[1750371861025,1.5793,146.8,146.72,57.93347873]
[1750371861167,6.43810051,146.78,146.74,6.43810051]
[1750371861497,6.43810051,146.78,146.75,23.85008517]
[1750371861882,32.43810051,146.79,146.75,23.85008517]
[1750371864622,0.75,146.84,146.75,64.35973593]
[1750371864788,6.43810051,146.83,146.78,6.43810051]
[1750371865110,6.43810051,146.82,146.78,28.58]
[1750371865285,7.18810051,146.82,146.78,27.9]
[1750371866039,38.87620102,146.79,146.75,23.85008517]
[1750371866190,38.87620102,146.79,146.75,6.81431005]
[1750371866191,6.43810051,146.76,146.75,6.81431005]
[1750371867007,6.43810051,146.76,146.72,23.85396332]
[1750371867214,6.43810051,146.75,146.72,23.85396332]
[1750371867619,6.43810051,146.73,146.72,23.85396332]
[1750371867799,6.43810051,146.73,146.72,6.81570338]
[1750371868796,6.43810051,146.73,146.69,6.81709727]
[1750371868797,0.7,146.72,146.69,6.81709727]
[1750371869125,7.13810051,146.7,146.69,6.81709727]
[1750371869286,6.43810051,146.7,146.69,6.81709727]
[1750371869828,6.43810051,146.7,146.65,24.57630166]
[1750371870124,7.13810051,146.72,146.65,24.57630166]
[1750371870125,6.43810051,146.68,146.65,24.57630166]
[1750371870331,6.43810051,146.68,146.65,23.86630166]
[1750371870498,6.43810051,146.67,146.65,23.86630166]
[1750371870699,6.43810051,146.67,146.65,17.04734497]
[1750371874628,6.43810051,146.68,146.65,17.04734497]
[1750371875628,6.43810051,146.68,146.65,24.57630166]
[1750371875829,0.7,146.71,146.65,24.57630166]
[1750371876037,6.43810051,146.69,146.66,0.71]
[1750371876507,6.43810051,146.67,146.65,23.86630166]
[1750371877243,6.43810051,146.66,146.65,23.86630166]
[1750371878316,6.43810051,146.66,146.65,17.04734497]
[1750371878840,6.43810051,146.66,146.64,6.81942171]
[1750371879026,6.43810051,146.65,146.64,6.81942171]
[1750371879544,6.43810051,146.66,146.64,6.81942171]
[1750371882716,26.0,146.68,146.64,6.81942171]
[1750371882921,6.43810051,146.66,146.64,6.81942171]
[1750371883422,6.43810051,146.68,146.64,23.86797599]
[1750371883740,6.43810051,146.68,146.65,0.71]
[1750371884626,6.43810051,146.68,146.66,6.81849174]
[1750371887518,6.43810051,146.69,146.66,23.86472111]
[1750371889142,6.43810051,146.67,146.66,6.81849174]
[1750371891044,7.13810051,146.67,146.65,6.81895669]
[1750371891251,6.43810051,146.66,146.65,6.81895669]
[1750371893952,6.43810051,146.66,146.64,23.86796242]
[1750371896135,6.43810051,146.65,146.64,6.81942171]
[1750371896455,7.11810051,146.65,146.64,6.81942171]
[1750371898158,7.11810051,146.65,146.62,17.05071977]
[1750371898352,6.43810051,146.64,146.62,17.05071977]
[1750371898940,6.43810051,146.66,146.63,0.71]
[1750371899833,6.43810051,146.65,146.63,0.71]
[1750371900441,6.43810051,146.65,146.64,6.81942171]
[1750371902567,6.43810051,146.65,146.62,23.8710717]
[1750371902782,174.6,146.69,146.62,23.8710717]
[1750371902783,155.03810051,146.69,146.64,6.43810051]
[1750371902943,6.43810051,146.7,146.66,0.71]
[1750371903270,6.43810051,146.7,146.65,6.43810051]
[1750371903603,6.43810051,146.7,146.66,0.71]
[1750371904952,6.43810051,146.7,146.67,6.81802686]
[1750371905969,6.43810051,146.7,146.67,23.86309401]
[1750371907076,6.43810051,146.69,146.67,23.86309401]
[1750371908176,6.43810051,146.7,146.67,23.86309401]
[1750371908369,6.43810051,146.7,146.67,24.57309401]
[1750371911061,6.43810051,146.73,146.69,23.85984046]
[1750371911266,6.43810051,146.73,146.7,0.71]
[1750371912186,6.43810051,146.74,146.7,0.71]
[1750371912686,6.43810051,146.76,146.72,0.71]
[1750371912865,6.43810051,146.76,146.72,23.85496183]
[1750371913061,6.43810051,146.76,146.72,24.56496183]
[1750371915075,26.0,146.78,146.72,31.00306234]
[1750371915286,6.43810051,146.75,146.72,23.85496183]
[1750371915992,7.11810051,146.75,146.72,23.85496183]
[1750371917397,7.11810051,146.75,146.72,17.03925845]
[1750371917768,6.43810051,146.74,146.72,17.03925845]
[1750371917969,0.68,146.75,146.72,17.03925845]
[1750371918170,6.43810051,146.74,146.72,17.03925845]
[1750371920397,6.43810051,146.74,146.72,17.74925845]
[1750371920577,6.43810051,146.75,146.72,17.74925845]
[1750371921598,6.43810051,146.75,146.72,24.56496183]
[1750371923079,175.28,146.8,146.72,64.37157924]
[1750371923280,6.43810051,146.78,146.74,0.71]
[1750371923471,6.43810051,146.79,146.76,0.71]
[1750371925573,6.43810051,146.79,146.77,6.81338148]
[1750371926075,6.43810051,146.79,146.77,7.49338148]
[1750371927009,6.43810051,146.8,146.77,24.52683518]
[1750371928496,6.43810051,146.82,146.79,0.68]
[1750371929125,148.6,146.83,146.79,0.68]
[1750371929318,155.03810051,146.83,146.79,0.68]
[1750371929822,155.03810051,146.83,146.8,23.84196185]
[1750371930929,155.71810051,146.83,146.8,23.84196185]
[1750371931724,6.43810051,146.82,146.8,17.02997275]
[1750371935032,6.43810051,146.82,146.78,23.84521051]
[1750371935232,6.43810051,146.82,146.78,24.52521051]
[1750371936236,6.43810051,146.82,146.78,30.96331102]
[1750371939036,7.11810051,146.81,146.78,23.84521051]
[1750371939220,6.43810051,146.8,146.78,23.84521051]
[1750371939420,6.43810051,146.81,146.78,23.84521051]
[1750371941226,6.43810051,146.81,146.78,17.03229322]
[1750371943346,7.11810051,146.81,146.78,17.03229322]
[1750371947146,7.11810051,146.81,146.78,23.84521051]
[1750371948634,7.11810051,146.81,146.78,17.03229322]
[1750371949167,0.68,146.79,146.77,6.81338148]
[1750371949353,7.11810051,146.78,146.77,6.81338148]
[1750371950572,0.68,146.77,146.76,6.81367087]
[1750371950766,0.68,146.77,146.75,5.98]
[1750371950767,32.43810051,146.77,146.74,6.81448727]
[1750371950971,6.43810051,146.75,146.74,6.81448727]
[1750371951162,7.11810051,146.75,146.74,6.81448727]
[1750371951850,7.11810051,146.75,146.71,23.85571477]
[1750371952169,6.43810051,146.74,146.71,23.85571477]
[1750371952343,6.43810051,146.75,146.71,24.53571477]
[1750371952545,6.43810051,146.75,146.72,0.68]
[1750371953676,6.43810051,146.75,146.73,6.81523887]
[1750371961476,7.13810051,146.75,146.73,6.81523887]
[1750371963563,6.43810051,146.74,146.73,6.81523887]
[1750371964789,7.13810051,146.74,146.73,6.81523887]
[1750371965180,0.7,146.73,146.71,6.81616795]
[1750371965378,0.7,146.76,146.71,7.55616795]
[1750371965573,7.13810051,146.76,146.72,0.74]
[1750371965800,6.43810051,146.75,146.72,0.74]
[1750371965986,7.13810051,146.75,146.71,24.59658782]
[1750371966499,6.43810051,146.74,146.71,24.59658782]
[1750371967805,6.43810051,146.72,146.71,23.85658782]
[1750371969002,7.13810051,146.72,146.71,6.81616795]
[1750371973789,7.13810051,146.72,146.69,17.0425818]